[Event "Stare Mesto Open-A 2022"]
[Site "Stare Mesto"]
[Date "2022.08.17"]
[Round "6.6"]
[White "Babula, Matej"]
[Black "Zpevak, Pavel"]
[Result "1/2-1/2"]
[ECO "B13"]
[WhiteElo "1748"]
[BlackElo "2351"]
[Annotator "TA"]
[PlyCount "42"]
[EventDate "2022.08.12"]
[EventType "swiss"]
[EventCountry "CZE"]
[SourceTitle "playchess.com"]
[Source "ChessBase"]
[SourceQuality "1"]
[TimeControl "40/5400+30:1800+30"]

{[%evp 10,42,19,19,25,14,27,28,33,38,56,58,51,45,47,45,46,43,56,33,53,41,52,52,48,35,38,41,45,40,47,0,0,4,11]} 1. e4 {[%emt 0:00:01]} c6 {[%emt 0:00:08]} 2. d4 {[%emt 0:00:06]} d5 {[%emt 0:00:07]} 3. exd5 {[%emt 0:00:06]} cxd5 {[%emt 0:00:08]} 4. Bd3 {[%emt 0:00:06]} Nc6 {[%emt 0:00:27]} 5. c3 {[%emt 0:00:06]} Qc7 {[%emt 0:00:38]} 6. h3 {[%emt 0:01:36]} e6 {[%emt 0:04:38] B13: Caro-Kann: Exchange Variation and Panov-Botvinnik Attack.} 7. Nf3 {[%emt 0:01:44]} Bd6 {[%emt 0:01:02]} 8. O-O {[%emt 0:01:15][%cal Bh1f1,Bf1e1,Be1e5][%mdl 32]} Nge7 {[%emt 0:01:04] White has an edge.} 9. Re1 {[%emt 0:04:49] [#]} Bf4 $146 {[%emt 0:06:49]} ({Predecessor:} 9... Bd7 10. Nbd2 f6 11. c4 O-O 12. a3 a5 13. Nb1 dxc4 14. Bxc4 Nd5 15. Nc3 Nce7 {½-½ (92) Abdusattorov,N (2651)-Izoria,Z (2602) Chess.com INT 2022}) 10. Bxf4 {[%emt 0:03:09]} Qxf4 {[%emt 0:02:14]} 11. Ne5 {[%emt 0:02:41]} Nxe5 {[%emt 0:10:01]} 12. Rxe5 {[%emt 0:04:12]} Bd7 {[%emt 0:05:24]} 13. Nd2 {[%emt 0:09:51]} O-O {[%emt 0:11:02]} 14. Nf3 {[%emt 0:05:46][%cal Od3h7] aiming for Bxh7+!} g6 {[%emt 0:10:41]} 15. Re3 {[%emt 0:11:23]} Nc6 {[%emt 0:03:46]} 16. Qe2 {[%emt 0:09:56]} Rae8 {[%emt 0:02:31]} 17. Ne5 {[%emt 0:07:29]} Nxe5 {[%emt 0:03:13]} 18. dxe5 {[%emt 0:00:09]} Bc6 {[%emt 0:00:34]} 19. Rd1 {[%emt 0:03:44]} Rd8 {[%emt 0:01:41]} 20. Bb5 {[%emt 0:01:53]} d4 {[%emt 0:08:42]} 21. cxd4 {[%emt 0:01:02]} Rxd4 {[%emt 0:01:49] Weighted Error Value: White=0.07 (flawless) /Black=0.06 (flawless)} 1/2-1/2

[Event "Stare Mesto Open-A 2022"]
[Site "Stare Mesto"]
[Date "2022.08.17"]
[Round "6.8"]
[White "Horvath, Tomas"]
[Black "Setina, Vaclav"]
[Result "1/2-1/2"]
[ECO "B21"]
[WhiteElo "2094"]
[BlackElo "1760"]
[Annotator "NA RC"]
[PlyCount "79"]
[EventDate "2022.08.12"]
[EventType "swiss"]
[EventCountry "CZE"]
[SourceTitle "playchess.com"]
[Source "ChessBase"]
[SourceQuality "1"]
[TimeControl "40/5400+30:1800+30"]

1. e4 {[%emt 0:00:03]} c5 {[%emt 0:00:57]} 2. d4 {[%emt 0:00:35]} cxd4 {[%emt 0:00:08]} 3. c3 {[%emt 0:00:00]} d3 {[%emt 0:00:14]} 4. Bxd3 {[%emt 0:00:00]} Nc6 {[%emt 0:00:11]} 5. c4 {[%emt 0:00:00]} d6 {[%emt 0:00:59]} 6. Nc3 {[%emt 0:00:34]} g6 {[%emt 0:00:45]} 7. h3 {[%emt 0:00:41]} Bg7 {[%emt 0:00:25]} 8. Nf3 {[%emt 0:00:14]} Nf6 {[%emt 0:00:31]} 9. O-O {[%emt 0:00:27]} O-O {[%emt 0:00:10]} 10. Be3 {[%emt 0:00:42]} b6 {[%emt 0:01:31]} 11. Rc1 {[%emt 0:01:34]} Bb7 {[%emt 0:01:45]} 12. Qd2 {[%emt 0:03:27]} Nd7 {[%emt 0:12:41]} 13. Rfd1 {[%emt 0:05:48]} Nde5 {[%emt 0:01:10]} 14. Be2 {[%emt 0:03:59]} Nxf3+ {[%emt 0:03:43]} 15. Bxf3 {[%emt 0:00:30]} Ne5 {[%emt 0:00:41]} 16. Be2 {[%emt 0:00:30]} Rc8 {[%emt 0:00:12]} 17. b3 {[%emt 0:03:18]} Bc6 {[%emt 0:06:13]} 18. f4 {[%emt 0:03:26]} Nd7 {[%emt 0:00:14]} 19. f5 {[%emt 0:21:26]} Nc5 {[%emt 0:12:48]} 20. Bd4 {[%emt 0:06:40]} Qc7 {[%emt 0:13:26]} 21. b4 {[%emt 0:07:08]} Nd7 {[%emt 0:04:40]} 22. Nd5 {[%emt 0:03:27]} Bxd5 {[%emt 0:01:35]} 23. exd5 {[%emt 0:05:01]} Bxd4+ {[%emt 0:06:44]} 24. Qxd4 {[%emt 0:00:06]} Ne5 {[%emt 0:09:35]} 25. Rf1 {[%emt 0:03:11]} Qd7 {[%emt 0:10:16]} 26. c5 {[%emt 0:02:51]} Qa4 {[%emt 0:01:27]} 27. c6 {[%emt 0:03:46]} Qxa2 {[%emt 0:04:12]} 28. Bb5 {[%emt 0:01:45]} e6 {[%emt 0:04:20]} 29. dxe6 {[%emt 0:03:39]} fxe6 {[%emt 0:01:07]} 30. Qxd6 {[%emt 0:01:14]} Nf7 {[%emt 0:00:32]} 31. Qxe6 {[%emt 0:00:25]} Qxe6 {[%emt 0:00:06]} 32. fxe6 {[%emt 0:00:03]} Nd6 {[%emt 0:00:39]} 33. Be2 {[%emt 0:02:02]} Rxf1+ {[%emt 0:01:48]} 34. Kxf1 {[%emt 0:00:05]} b5 {[%emt 0:01:10]} 35. Bf3 {[%emt 0:06:35]} Kf8 {[%emt 0:00:20]} 36. Bd5 {[%emt 0:01:21]} Ke7 {[%emt 0:00:36]} 37. Ke2 {[%emt 0:00:07]} Nf5 {[%emt 0:00:32]} 38. Kd3 {[%emt 0:01:51]} Kd6 {[%emt 0:00:16]} 39. Rc5 {[%emt 0:03:22]} a6 {[%emt 0:00:38]} 40. Be4 {[%emt 0:05:57]} 1/2-1/2

[Event "Stare Mesto Open-A 2022"]
[Site "Stare Mesto"]
[Date "2022.08.18"]
[Round "7.1"]
[White "Haba, Petr"]
[Black "Cerveny, Martin"]
[Result "1/2-1/2"]
[ECO "B66"]
[WhiteElo "2453"]
[BlackElo "2396"]
[Annotator "TA"]
[PlyCount "37"]
[EventDate "2022.08.12"]
[EventType "swiss"]
[EventCountry "CZE"]
[SourceTitle "playchess.com"]
[Source "ChessBase"]
[SourceQuality "1"]
[TimeControl "40/5400+30:1800+30"]

{[%evp 13,37,27,51,17,16,16,28,27,37,37,63,39,69,33,24,10,72,-4,4,-66,56,36,16,30,19,25]} 1. e4 {[%emt 0:00:17]} c5 {[%emt 0:00:09]} 2. Nf3 {[%emt 0:00:14]} d6 {[%emt 0:00:10]} 3. d4 {[%emt 0:00:06]} cxd4 {[%emt 0:00:07]} 4. Nxd4 {[%emt 0:00:05]} Nf6 {[%emt 0:00:07]} 5. Nc3 {[%emt 0:00:06]} Nc6 {[%emt 0:00:32]} 6. Bg5 {[%emt 0:01:07]} e6 {[%emt 0:00:34]} 7. Qd2 {[%emt 0:00:16]} a6 {[%emt 0:00:26]} 8. Nxc6 {[%emt 0:00:34] B66: Sicilian: Richter-Rauzer: 7...a6 8 0-0-0 h6.} bxc6 {[%emt 0:00:07]} 9. O-O-O {[%emt 0:00:08][%cal Oe4e5] Strongly threatening e5!} Be7 {[%emt 0:02:45]} 10. Bxf6 {[%emt 0:00:18] White has an edge.} gxf6 {[%emt 0:03:10]} 11. Bc4 {[%emt 0:00:08]} h5 {[%emt 0:03:14]} 12. Rhe1 {[%emt 0:01:51]} a5 {[%emt 0:04:09] [#]} 13. Re3 $146 {[%emt 0:11:44] White is much more active. The black rooks are badly placed.} ({Predecessor:} 13. Bb3 Bd7 14. f4 Qc7 15. Qe2 Bf8 16. Kb1 Rb8 17. f5 e5 18. Qc4 Rh7 19. Rd3 {0-1 (42) Androutsopoulos Agiotatos,V (2096)-Nevednichy,V (2550) Kavala 2018}) 13... a4 {[%emt 0:00:52]} 14. a3 {[%emt 0:00:35]} Qa5 {[%emt 0:01:57]} (14... Kf8 $11) 15. Qe2 {[%emt 0:04:54]} (15. f4 $16) 15... f5 {[%emt 0:11:10]} 16. f4 {[%emt 0:11:23]} (16. Qf3 $11) 16... Bd7 {[%emt 0:11:12]} (16... fxe4 $15 17. Rxe4 Qc7) 17. Bd3 {[%emt 0:03:40] Black must now prevent exf5.} fxe4 {[%emt 0:18:22]} 18. Rxe4 {[%emt 0:00:11]} Qc7 {[%emt 0:00:07]} 19. Rxa4 {[%emt 0:08:01] Weighted Error Value: White=0.31/Black=0.32} 1/2-1/2

[Event "Stare Mesto Open-A 2022"]
[Site "Stare Mesto"]
[Date "2022.08.18"]
[Round "7.2"]
[White "Kostka, Vit"]
[Black "Neuman, Petr"]
[Result "1/2-1/2"]
[ECO "B07"]
[WhiteElo "2168"]
[BlackElo "2378"]
[Annotator "TA"]
[PlyCount "38"]
[EventDate "2022.08.12"]
[EventType "swiss"]
[EventCountry "CZE"]
[SourceTitle "playchess.com"]
[Source "ChessBase"]
[SourceQuality "1"]
[TimeControl "40/5400+30:1800+30"]

{[%evp 15,38,40,56,55,52,46,50,53,66,65,54,45,64,68,70,75,77,73,126,126,126,126,116,123,139]} 1. e4 {[%emt 0:00:05]} d6 {[%emt 0:00:22]} 2. d4 {[%emt 0:00:07]} Nf6 {[%emt 0:00:04]} 3. Nc3 {[%emt 0:00:04]} e5 {[%emt 0:00:04]} 4. dxe5 {[%emt 0:00:05]} dxe5 {[%emt 0:00:03]} 5. Qxd8+ {[%emt 0:00:06]} Kxd8 {[%emt 0:00:03]} 6. Bc4 {[%emt 0:00:07]} Be6 {[%emt 0:00:23]} 7. Bxe6 {[%emt 0:00:06]} fxe6 {[%emt 0:00:03]} 8. f3 {[%emt 0:00:15]} Bd6 {[%emt 0:00:25]} 9. Be3 {[%emt 0:01:22] B07: Pirc Defence: Miscellaneous Systems.} a6 {[%emt 0:01:50]} 10. Nb1 {[%emt 0:08:37]} Ke7 {[%emt 0:05:34]} 11. Nd2 {[%emt 0:00:41] [#] White is slightly better.} h6 $146 {[%emt 0:03:09]} ({Predecessor:} 11... Nc6 12. c3 h6 13. Nh3 Rhd8 14. Nf2 Kf7 15. Ke2 Be7 16. Nd3 Nd7 17. a4 a5 {1-0 (69) Stevic,H (2571)-Runic,Z (2452) Neum 2008}) 12. Nh3 {[%emt 0:01:04][%cal Bg1h3,Bh3f2,Bf2d3][%mdl 32]} b5 {[%emt 0:05:15]} 13. a4 {[%emt 0:11:36] [#] And now axb5 would win.} Nbd7 {[%emt 0:04:53]} 14. Nf2 {[%emt 0:02:11]} Bc5 {[%emt 0:04:43]} 15. Ke2 {[%emt 0:06:13]} Bxe3 {[%emt 0:00:49] White is better.} 16. Kxe3 {[%emt 0:00:07]} Nc5 {[%emt 0:00:10]} (16... Nb6 $142) 17. axb5 $16 {[%emt 0:02:24]} axb5 {[%emt 0:00:04]} 18. b4 {[%emt 0:03:17]} Na4 {[%emt 0:00:57]} 19. Nd3 {[%emt 0:01:06] Prevents c5.} Nd7 {[%emt 0:01:14] Weighted Error Value: White=0.01 (flawless) /Black=0.10 (very precise)} 1/2-1/2

[Event "Stare Mesto Open-A 2022"]
[Site "Stare Mesto"]
[Date "2022.08.18"]
[Round "7.3"]
[White "Sramek, Vojtech"]
[Black "Murko, David"]
[Result "1-0"]
[ECO "B56"]
[WhiteElo "2249"]
[BlackElo "2213"]
[Annotator "NA RC"]
[PlyCount "55"]
[EventDate "2022.08.12"]
[EventType "swiss"]
[EventCountry "CZE"]
[SourceTitle "playchess.com"]
[Source "ChessBase"]
[SourceQuality "1"]
[TimeControl "40/5400+30:1800+30"]

1. e4 {[%emt 0:00:06]} c5 {[%emt 0:00:04]} 2. Nf3 {[%emt 0:00:07]} d6 {[%emt 0:00:04]} 3. d4 {[%emt 0:00:06]} cxd4 {[%emt 0:00:06]} 4. Nxd4 {[%emt 0:00:04]} Nf6 {[%emt 0:00:06]} 5. Nc3 {[%emt 0:00:13]} Nc6 {[%emt 0:00:07]} 6. f3 {[%emt 0:00:05]} e5 {[%emt 0:00:09]} 7. Nb3 {[%emt 0:00:09]} Be6 {[%emt 0:00:20]} 8. Be3 {[%emt 0:00:14]} Be7 {[%emt 0:00:09]} 9. Nd5 {[%emt 0:00:17]} O-O {[%emt 0:00:41]} 10. Qd2 {[%emt 0:01:04]} a5 {[%emt 0:00:37]} 11. c4 {[%emt 0:01:27]} a4 {[%emt 0:00:41]} 12. Nc1 {[%emt 0:01:10]} b5 {[%emt 0:01:22]} 13. cxb5 {[%emt 0:11:48]} Bxd5 {[%emt 0:00:26]} 14. exd5 {[%emt 0:00:57]} Nd4 {[%emt 0:00:42]} 15. Bc4 {[%emt 0:17:23]} Qc7 {[%emt 0:07:15]} 16. b3 {[%emt 0:01:32]} axb3 {[%emt 0:09:10]} 17. Bxb3 {[%emt 0:00:55]} Nxb5 {[%emt 0:04:03]} 18. Ne2 {[%emt 0:05:33]} Bd8 {[%emt 0:15:00]} 19. O-O {[%emt 0:02:40]} Qb7 {[%emt 0:04:15]} 20. Rab1 {[%emt 0:03:33]} Ba5 {[%emt 0:10:15]} 21. Qd3 {[%emt 0:02:00]} Nc7 {[%emt 0:01:16]} 22. Bc4 {[%emt 0:05:51]} Qc8 {[%emt 0:00:25]} 23. Ng3 {[%emt 0:04:33]} Rb8 {[%emt 0:04:43]} 24. Rxb8 {[%emt 0:08:07]} Qxb8 {[%emt 0:00:05]} 25. Rb1 {[%emt 0:00:27]} Qa8 {[%emt 0:00:23]} 26. Nf5 {[%emt 0:00:52]} Ncxd5 {[%emt 0:10:59]} 27. Bxd5 {[%emt 0:02:19]} Nxd5 {[%emt 0:00:38]} 28. Qxd5 {[%emt 0:00:13]} 1-0

[Event "Stare Mesto Open-A 2022"]
[Site "Stare Mesto"]
[Date "2022.08.18"]
[Round "7.4"]
[White "Zpevak, Pavel"]
[Black "Babula, Vlastimil"]
[Result "1/2-1/2"]
[ECO "A48"]
[WhiteElo "2351"]
[BlackElo "2571"]
[Annotator "TA"]
[PlyCount "122"]
[EventDate "2022.08.12"]
[EventType "swiss"]
[EventCountry "CZE"]
[SourceTitle "playchess.com"]
[Source "ChessBase"]
[SourceQuality "1"]
[TimeControl "40/5400+30:1800+30"]

{[%evp 20,122,109,113,121,118,188,125,118,107,136,108,131,117,133,107,147,105,145,108,166,66,59,45,45,14,26,24,61,15,30,0,0,0,0,0,21,0,64,0,0,0,0,-29,25,-41,-20,-83,-28,-106,-117,-200,-196,-191,-185,-350,-84,-348,-337,-335,-348,-311,-304,-307,-270,-356,-348,-377,-362,-345,-333,-377,-370,-353,-253,-238,-125,-157,-118,-112,-22,-22,-22,-22,-22,-22,-22,-22,-22,-22,-22,-37,-37,-37,0,-118,-102,-75,0,0,0,0,0,0,0]} 1. d4 {[%emt 0:00:05]} Nf6 {[%emt 0:00:11]} 2. Nf3 {[%emt 0:00:46]} g6 {[%emt 0:00:07]} 3. Bf4 {[%emt 0:00:55]} Bg7 {[%emt 0:00:36]} 4. e3 {[%emt 0:00:30]} O-O {[%emt 0:00:34]} 5. Be2 {[%emt 0:01:08]} d6 {[%emt 0:01:36]} 6. h3 {[%emt 0:01:46]} Nbd7 {[%emt 0:04:53]} 7. O-O {[%emt 0:02:19]} Qe8 {[%emt 0:03:00]} 8. c4 {[%emt 0:02:04]} e5 {[%emt 0:00:19]} 9. Bh2 {[%emt 0:00:19]} e4 {[%emt 0:03:24]} 10. Nfd2 {[%emt 0:01:04]} Qe7 {[%emt 0:01:17]} 11. Nc3 {[%emt 0:00:26]} c6 {[%emt 0:01:17] A48: 1 d4 Nf6 2 Nf3 g6: Torre, London and Colle Systems.} 12. b4 {[%emt 0:04:02]} b6 {[%emt 0:18:45] Against c5} (12... Rd8 $16) 13. Qc2 {[%emt 0:07:17]} (13. b5 $18) 13... Re8 $16 {[%emt 0:00:24] [#] White is better.} 14. Rfb1 $146 {[%emt 0:02:37] White is more active.} ({Predecessor:} 14. a4 a5 15. bxa5 bxa5 16. Rab1 g5 17. Rfc1 Bf8 18. Nb3 Qd8 19. Nd2 Qe7 20. d5 cxd5 {1-0 (55) Hamitevici,V (2284)-Osman,M (2161) Bucharest 2006}) 14... h5 {[%emt 0:01:41]} 15. a4 {[%emt 0:02:55]} a5 {[%emt 0:13:31]} 16. bxa5 {[%emt 0:04:43]} bxa5 {[%emt 0:01:06]} 17. Ra2 {[%emt 0:02:09]} Ba6 {[%emt 0:07:02]} 18. Rab2 {[%emt 0:07:17]} c5 {[%emt 0:01:58]} 19. dxc5 {[%emt 0:08:41]} dxc5 {[%emt 0:00:18]} (19... Nxc5 $16 {was necessary.} 20. Rb6 Red8) 20. Nb5 {[%emt 0:03:18]} (20. Rd1 $18) 20... Ne5 $1 $14 {[%emt 0:02:30]} 21. Rb3 {[%emt 0:17:54]} Rad8 {[%emt 0:02:41]} 22. Bg3 {[%emt 0:18:21]} Bc8 {[%emt 0:03:51]} 23. Rd1 {[%emt 0:04:37]} (23. Nxe4 Nxe4 24. Qxe4 Rd2 $17) 23... Bf5 $1 {[%emt 0:02:27]} 24. Bh4 {[%emt 0:02:52]} (24. Qc3 $14 {was preferrable.}) 24... Nd3 {[%emt 0:06:08]} 25. Bxd3 {[%emt 0:00:42]} exd3 {[%emt 0:00:35]} 26. Qb1 {[%emt 0:00:14][%cal Oe3e4]} Qd7 {[%emt 0:02:09][%cal Of5h3]} 27. Kh2 {[%emt 0:03:09]} Ra8 {[%emt 0:08:20]} 28. Nc3 Nh7 {[%emt 0:00:59]} (28... Bg4 $2 29. hxg4 Nxg4+ 30. Kg1 $18) ({Black should play} 28... Ne4 $11 29. Ncxe4 Bxe4) 29. Bg3 {[%emt 0:02:11]} (29. Nd5 $1 $14) 29... Bxc3 $11 {[%emt 0:06:02]} 30. Rxc3 {[%emt 0:00:01][%cal Oe3e4]} Qxa4 {[%emt 0:00:07]} 31. Qa1 {[%emt 0:00:32]} Qd7 {[%emt 0:01:41]} ({Black should try} 31... Qxa1 32. Rxa1 a4) 32. Rb1 {[%emt 0:00:20]} (32. Nf1 $11) 32... Qe7 {[%emt 0:01:01] aiming for ...h4.} 33. Kg1 {[%emt 0:00:38]} (33. h4 $1 $11 {remains equal.}) 33... h4 {[%emt 0:00:25]} (33... Ng5 $17 34. Rf1 Ne4 35. Nxe4 Qxe4) 34. Bh2 {[%emt 0:00:16]} (34. Bf4 $11) 34... Ng5 $17 {[%emt 0:00:35]} 35. Rb5 {[%emt 0:00:29]} (35. Re1 $17) 35... Ne4 $19 {[%emt 0:01:08]} 36. Nxe4 {[%emt 0:00:06]} Bxe4 {[%emt 0:00:07]} 37. Bf4 {[%emt 0:01:20] Prevents Qg5.} (37. Rb2) 37... Bc6 $2 {[%emt 0:01:02]} (37... g5 $19 38. Bh2 d2) 38. Rb2 $2 {[%emt 0:00:14][%mdl 8192]} (38. Rb6 $17 {was worth a try.} Be4 39. Rc1) 38... g5 {[%emt 0:00:28]} 39. Bh2 {[%emt 0:00:29]} Qe4 {[%emt 0:00:33][%csl Gc6][%cal Re4g2]} 40. Qf1 {[%emt 0:00:11]} Red8 {[%emt 0:01:08] Strongly threatening ...d2.} 41. Rd2 {[%emt 0:30:06][%cal Rd2d3]} a4 {[%emt 0:31:52][%cal Ba5a4,Ba4a3,Ba3a2][%mdl 32] ...a3 is the strong threat.} 42. Rcxd3 {[%emt 0:00:57]} Rxd3 {[%emt 0:01:12]} 43. Rxd3 {[%emt 0:00:03]} a3 {[%emt 0:00:30] White must now prevent ...a2.} 44. f3 {[%emt 0:00:11]} Qf5 {[%emt 0:00:00]} 45. Rd1 {[%emt 0:00:00]} a2 {[%emt 0:00:00]} 46. Ra1 {[%emt 0:00:00]} Qc2 {[%emt 0:00:00]} 47. Be5 {[%emt 0:00:00]} f6 {[%emt 0:00:00]} (47... Re8 $1 $19 {[%cal Re8e5]} 48. Bf6 Rxe3) 48. Bxf6 $17 {[%emt 0:00:00]} Rb8 {[%emt 0:00:00]} 49. Rc1 {[%emt 0:00:00] [#]} Qxc1 {[%emt 0:00:00]} 50. Qxc1 $11 {[%emt 0:00:00]} Rb1 {[%emt 0:00:00]} 51. Qf1 {[%emt 0:00:00]} Kf7 {[%emt 0:00:00]} 52. Bc3 {[%emt 0:00:00]} Ba4 $36 {[%emt 0:00:00][%mdl 2048] Black has some pressure.} 53. Kf2 {[%emt 0:00:00]} Rxf1+ {[%emt 0:00:00]} 54. Kxf1 {[%emt 0:00:00][%mdl 4096] Endgame KB-KB} Bb3 {[%emt 0:00:00]} 55. g3 {[%emt 0:00:00]} Bxc4+ {[%emt 0:00:00]} 56. Kf2 {[%emt 0:00:00]} Be6 {[%emt 0:00:45]} 57. Kg2 {[%emt 0:00:00]} (57. f4 $1 $11 {was the only way to keep the balance.}) 57... Bc8 {[%emt 0:00:32]} 58. e4 {[%emt 0:00:00] [#]} Ke7 {[%emt 0:01:04]} (58... Bb7 $1 $17) 59. f4 {[%emt 0:00:00] The position is equal.} gxf4 {[%emt 0:00:05]} 60. gxh4 {[%emt 0:00:00]} Kf7 {[%emt 0:01:13]} 61. h5 {[%emt 0:00:00]} Kg8 {[%emt 0:00:07] White happily takes the draw.  Weighted Error Value: White=0.36/Black=0.29 (precise)} 1/2-1/2

[Event "Stare Mesto Open-A 2022"]
[Site "Stare Mesto"]
[Date "2022.08.18"]
[Round "7.5"]
[White "Prazak, Daniel"]
[Black "Szotkowski, Jakub"]
[Result "0-1"]
[ECO "B12"]
[WhiteElo "2113"]
[BlackElo "2344"]
[Annotator "TA"]
[PlyCount "90"]
[EventDate "2022.08.12"]
[EventType "swiss"]
[EventCountry "CZE"]
[SourceTitle "playchess.com"]
[Source "ChessBase"]
[SourceQuality "1"]
[TimeControl "40/5400+30:1800+30"]

{[%evp 18,90,74,52,82,85,93,93,92,70,71,70,67,67,68,73,80,61,88,27,25,20,24,11,11,0,27,27,27,27,27,0,11,0,0,0,0,-20,-3,-22,0,-72,-71,-71,0,-73,-72,-186,-191,-231,-242,-424,-424,-406,-304,-483,-461,-673,-657,-633,-442,-375,-232,-379,-381,-372,-360,-738,-731,-731,-702,-660,-459,-452,-450]} 1. e4 {[%emt 0:00:03]} c6 {[%emt 0:00:11]} 2. d4 {[%emt 0:00:18]} d5 {[%emt 0:00:04]} 3. e5 {[%emt 0:00:56]} Bf5 {[%emt 0:00:17]} 4. Nf3 {[%emt 0:00:57]} e6 {[%emt 0:00:07]} 5. Be2 {[%emt 0:00:49]} Nd7 {[%emt 0:00:14]} 6. O-O {[%emt 0:01:30]} Ne7 {[%emt 0:00:05]} 7. Nh4 {[%emt 0:02:15]} Bg6 {[%emt 0:00:19]} 8. Nd2 {[%emt 0:02:56]} c5 {[%emt 0:02:51]} 9. c3 {[%emt 0:04:07]} cxd4 {[%emt 0:03:25]} 10. cxd4 {[%emt 0:00:52]} Rc8 {[%emt 0:06:17] [#] Strongly threatening ...Bc2. B12: Caro-Kann: Advance Variation.} 11. Nxg6 {[%emt 0:05:50]} hxg6 {[%emt 0:00:08]} 12. Nf3 {[%emt 0:02:21]} Nc6 {[%emt 0:05:19] White is better.} 13. a3 {[%emt 0:09:00]} Be7 {[%emt 0:03:47] [#]} 14. g3 $146 {[%emt 0:03:53]} ({Predecessor:} 14. Be3 O-O 15. b4 a6 16. Nd2 b5 17. Nb3 Nb6 18. Nc5 Bxc5 19. dxc5 Nc4 20. Bxc4 dxc4 {0-1 (36) Bartoszczuk,A (1380)-Maslanka,W (1907) Pokrzywna 2021}) 14... Qb6 {[%emt 0:10:59]} 15. b4 {[%emt 0:09:50]} a6 {[%emt 0:00:28]} 16. Be3 {[%emt 0:03:10]} Na7 {[%emt 0:00:50]} 17. Qd3 {[%emt 0:05:17]} O-O {[%emt 0:03:09]} 18. Rfc1 {[%emt 0:16:37]} ({White should play} 18. Rfb1 $16) 18... Rxc1+ $11 {[%emt 0:00:56]} 19. Rxc1 {[%emt 0:00:10]} Rc8 {[%emt 0:00:08]} 20. Rxc8+ {[%emt 0:05:49]} Nxc8 {[%emt 0:00:05]} 21. Nd2 {[%emt 0:03:19][%cal Bf3d2,Bd2b3,Bb3a5][%mdl 32]} Qc6 {[%emt 0:09:13]} 22. Nb3 {[%emt 0:01:58]} Ndb6 {[%emt 0:02:08]} 23. Na5 {[%emt 0:03:06] Against Nc4} Qc7 {[%emt 0:00:17]} 24. Qb3 {[%emt 0:01:16]} Nd7 {[%emt 0:13:09]} 25. Qd3 {[%emt 0:02:16]} b5 {[%emt 0:01:44]} 26. Nb3 {[%emt 0:02:52]} Ndb6 {[%emt 0:05:17]} 27. f4 {[%emt 0:01:28]} Nc4 {[%emt 0:00:15]} 28. Nc5 {[%emt 0:02:06]} a5 {[%emt 0:02:50]} 29. Qc3 {[%emt 0:01:25]} (29. Nxe6 $11 {remains equal.} fxe6 30. Qxg6 Nxe3 31. Qxe6+ Kh8 32. Qh3+ Kg8 33. Qe6+ Kh8 34. Qh3+ Kg8 35. Qe6+) 29... axb4 $17 {[%emt 0:00:44]} 30. axb4 {[%emt 0:00:14]} N8b6 {[%emt 0:00:44]} (30... Na7 $17) 31. Kf2 {[%emt 0:02:26]} (31. Bf2 $11 {keeps the balance.}) 31... Qa7 {[%emt 0:00:18]} 32. g4 {[%emt 0:01:24]} (32. Bd2 $17 {is a better defense.}) 32... Qa2 $19 {[%emt 0:05:48]} 33. Kf3 {[%emt 0:02:28]} Qb1 {[%emt 0:05:34]} 34. Kg3 $2 {[%emt 0:01:11]} (34. Bc1 {might work better.}) 34... Nxe3 {[%emt 0:03:32]} 35. Qxe3 {[%emt 0:00:13]} Qxb4 {[%emt 0:00:04]} 36. Nb3 {[%emt 0:02:06]} (36. f5 {is the only way for White.} gxf5 37. gxf5 exf5 38. e6) 36... Nc4 {[%emt 0:01:37] [#] ( -> ...Qe1+)} 37. Qd3 {[%emt 0:00:48]} (37. Qf3 $142 g5 38. f5 exf5 39. Kf2) 37... Qe1+ {[%emt 0:00:23]} 38. Kg2 {[%emt 0:01:13]} b4 {[%emt 0:00:33]} 39. g5 {[%emt 0:00:34]} Kf8 {[%emt 0:02:01]} 40. Qf3 {[%emt 0:00:50]} (40. Kh3 $142) 40... Nd2 {[%emt 0:02:46]} 41. Nxd2 {[%emt 0:00:42]} Qxd2 {[%emt 0:00:00]} 42. Qf2 $2 {[%emt 0:01:56]} (42. h4) 42... b3 {[%emt 0:03:00] Black is clearly winning.} 43. Bb5 {[%emt 0:02:01]} Qc3 {[%emt 0:02:08] Threatens to win with ...b2.} 44. Qf3 {[%emt 0:01:56]} Qxd4 {[%emt 0:00:57]} 45. Qxb3 {[%emt 0:00:16]} Qxf4 {[%emt 0:00:06] Weighted Error Value: White=0.52/Black=0.26 (precise)} 0-1